[Event "14th Chennai GM Open 2023"]
[Site "Chennai"]
[Date "2024.01.02"]
[Round "4.1"]
[White "Aronyak Ghosh"]
[Black "Elgabry, Mohsen"]
[Result "1/2-1/2"]
[ECO "A13"]
[WhiteElo "2545"]
[BlackElo "2160"]
[Annotator "TA"]
[PlyCount "104"]
[EventDate "2023.12.31"]
[EventType "swiss"]
[EventCountry "IND"]
[SourceTitle "playchess.com"]
[Source "ChessBase"]
[SourceQuality "1"]
[TimeControl "5400+30"]

{[%evp 9,104,-1,1,-3,3,0,0,0,-8,0,0,0,0,-10,9,4,18,0,0,10,22,25,18,14,37,23,81,67,76,58,123,117,162,162,165,147,181,175,178,175,208,213,212,212,210,212,212,195,234,174,174,174,174,159,188,141,337,196,179,196,195,202,199,185,207,195,206,211,258,248,220,262,246,238,287,301,287,262,262,255,255,255,240,225,260,0,290,288,358,309,238,0,0,0,0,0,0]} 1. Nf3 {[%emt 0:05:12]} Nf6 {[%emt 0:00:31]} 2. c4 {[%emt 0:02:48]} e6 {[%emt 0:00:30]} 3. b3 {[%emt 0:01:00]} Be7 {[%emt 0:00:29]} 4. Bb2 {[%emt 0:00:28]} b6 {[%emt 0:00:35]} 5. d3 {[%emt 0:07:44]} d5 {[%emt 0:00:27]} 6. cxd5 {[%emt 1:16:18] A13: English Opening: 1...e6.} exd5 {[%emt 0:00:33] [#]} 7. e3 $146 {[%emt 0:00:00]} ({Predecessor:} 7. Nbd2 O-O 8. g3 Bb7 9. Bg2 Nbd7 10. O-O c5 11. e3 Re8 12. Rc1 Ba6 13. Qc2 {0-1 Halpert,S (2034)-Balazs,I (2133) HUN-chT2 Asztalos 0304 2003 (6)}) 7... O-O {[%emt 0:00:32]} 8. Be2 {[%emt 0:00:00]} Bb7 {[%emt 0:02:19]} 9. O-O {[%emt 0:00:00]} Nbd7 {[%emt 0:01:01]} 10. Nbd2 {[%emt 0:00:00]} Re8 {[%emt 0:01:00]} 11. Rc1 {[%emt 0:00:00]} c5 {[%emt 0:00:24]} 12. d4 {[%emt 0:00:00]} a6 {[%emt 0:00:34]} 13. dxc5 {[%emt 0:00:00]} bxc5 {[%emt 0:00:28]} 14. Ne5 {[%emt 0:00:00]} Bd6 {[%emt 0:01:20]} 15. Nxd7 {[%emt 0:00:00]} Nxd7 {[%emt 0:00:08]} 16. Bf3 {[%emt 0:00:00]} Qb8 {[%emt 0:03:27]} 17. g3 {[%emt 0:00:00]} Be5 {[%emt 0:04:19]} (17... Ne5 $11 {keeps the balance.}) 18. Bxe5 {[%emt 0:00:00]} Rxe5 {[%emt 0:00:22]} 19. Bg2 {[%emt 0:00:00]} a5 {[%emt 0:03:40]} (19... Qc7 $14) 20. Bh3 $16 {[%emt 0:00:00]} Re6 {[%emt 0:00:23]} 21. Bxe6 {[%emt 0:00:00]} fxe6 {[%emt 0:06:07] [#]} 22. e4 $1 {[%emt 0:00:00]} Qd6 {[%emt 0:02:33]} (22... d4 23. f4) 23. Re1 {[%emt 0:00:00]} d4 {[%emt 0:01:34]} 24. Nc4 {[%emt 0:00:00]} Qc7 {[%emt 0:01:28]} 25. Qg4 {[%emt 0:00:00]} Re8 {[%emt 0:00:29]} 26. Qf4 {[%emt 0:00:00]} e5 {[%emt 0:00:25]} 27. Qd2 {[%emt 0:00:00]} Ra8 {[%emt 0:00:20]} 28. f3 {[%emt 0:00:00]} Bc6 {[%emt 0:00:51]} 29. Rc2 {[%emt 0:00:00]} Bb5 {[%emt 0:01:36]} 30. Rec1 {[%emt 0:00:00]} h6 {[%emt 0:01:01]} 31. Kg2 {[%emt 0:00:00]} Ra6 {[%emt 0:00:22]} 32. a3 {[%emt 0:00:00]} (32. Na3 $18 Qc6 33. Rb2) 32... Qa7 $2 {[%emt 0:02:03]} (32... Kh8 $16 {was worth a try.} 33. b4 axb4) 33. b4 {[%emt 0:00:00]} (33. Nxe5 $142 Nxe5 34. Rxc5 Nxf3 {[%mdl 64] Decoy} 35. Kxf3 (35. Rc8+ Kh7 $16) 35... Rf6+ 36. Kg2 Bf1+ 37. Kg1) 33... axb4 $18 {[%emt 0:08:11]} 34. axb4 {[%emt 0:00:00]} Kh7 {[%emt 0:03:33]} 35. bxc5 {[%emt 0:00:00]} Qxc5 {[%emt 0:00:08] [#]} 36. Na5 $1 {[%emt 0:00:00]} Qb6 {[%emt 0:03:06]} 37. Ra2 {[%emt 0:00:00]} Qe6 {[%emt 0:01:34]} 38. Rb2 {[%emt 0:00:00]} Rb6 {[%emt 0:06:26]} 39. Rcb1 {[%emt 0:00:00]} Ba6 {[%emt 0:00:44]} 40. Rxb6 {[%emt 0:00:00]} Nxb6 {[%emt 0:00:07]} 41. Qb2 {[%emt 0:00:00]} Nc4 {[%emt 0:06:31]} 42. Nxc4 {[%emt 0:00:42]} Qxc4 {[%emt 0:00:07][%mdl 4096] Endgame KQR-KQB} 43. Rc1 {[%emt 0:01:00]} Qd3 {[%emt 0:00:25]} 44. Re1 {[%emt 0:02:20]} Bb5 {[%emt 0:01:16]} 45. Qf2 {[%emt 0:01:46]} Qc3 {[%emt 0:00:56]} 46. Rb1 {[%emt 0:04:07]} Qc4 {[%emt 0:02:41]} 47. Qb2 {[%emt 0:00:36]} Ba6 {[%emt 0:00:07]} 48. h4 {[%emt 0:02:15][%cal Bh2h4,Bh4h5][%mdl 32]} Qd3 {[%emt 0:01:02]} 49. h5 {[%emt 0:00:21]} Qe3 {[%emt 0:00:32] ...Be2 would be deadly.} 50. Qb6 $2 {[%emt 0:00:58]} ({Better is} 50. Qa2 $18 Qc3 51. Rd1 (51. Qxa6 Qc2+ 52. Kh3 Qxb1 $11) (51. Rb8 Bc4 $18)) 50... Qe2+ $11 {[%emt 0:00:52] The position is equal.} 51. Kg1 {[%emt 0:00:53]} Qe3+ {[%emt 0:00:07]} 52. Kg2 {[%emt 0:00:45] Intending Qg6+ and mate.} Qe2+ {[%emt 0:00:08] Weighted Error Value: White=0.21 (precise) /Black=0.19 (very precise)} 1/2-1/2

[Event "14th Chennai GM Open 2023"]
[Site "Chennai"]
[Date "2024.01.02"]
[Round "4.2"]
[White "Fedorov, Alexei"]
[Black "Murali Krishnan B T"]
[Result "1-0"]
[ECO "C10"]
[WhiteElo "2454"]
[BlackElo "2181"]
[Annotator "RC"]
[PlyCount "97"]
[EventDate "2023.12.31"]
[EventType "swiss"]
[EventCountry "IND"]
[SourceTitle "playchess.com"]
[Source "ChessBase"]
[SourceQuality "1"]
[TimeControl "5400+30"]

1. e4 {[%emt 0:00:05]} e6 {[%emt 1:31:00]} 2. d4 {[%emt 0:00:43]} d5 {[%emt 0:00:00]} 3. Nc3 {[%emt 0:00:05]} dxe4 {[%emt 0:00:00]} 4. Nxe4 {[%emt 0:00:04]} Bd7 {[%emt 0:00:00]} 5. Nf3 {[%emt 0:00:22]} Bc6 {[%emt 0:00:00]} 6. Bd3 {[%emt 0:00:05]} Nd7 {[%emt 0:00:00]} 7. O-O {[%emt 0:01:29]} Be7 {[%emt 0:00:00]} 8. c3 {[%emt 0:05:52]} Ngf6 {[%emt 0:00:00]} 9. Nxf6+ {[%emt 0:00:29]} Bxf6 {[%emt 0:00:00]} 10. Re1 {[%emt 0:03:52]} O-O {[%emt 0:00:00]} 11. Bf4 {[%emt 0:00:05]} Re8 {[%emt 0:00:00]} 12. Ne5 {[%emt 0:09:16]} Bxe5 {[%emt 0:00:00]} 13. Bxe5 {[%emt 0:00:08]} Nxe5 {[%emt 0:00:00]} 14. Rxe5 {[%emt 0:00:04]} Qf6 {[%emt 0:00:00]} 15. Qg4 {[%emt 0:02:56]} Red8 {[%emt 0:00:00]} 16. Qg3 {[%emt 0:31:19]} Rd6 {[%emt 0:00:00]} 17. Rae1 {[%emt 0:03:30]} Rad8 {[%emt 0:00:00]} 18. h4 {[%emt 0:06:35]} h6 {[%emt 0:00:00]} 19. f4 {[%emt 0:09:34]} Bd7 {[%emt 0:00:00]} 20. Rf1 {[%emt 0:05:38]} c6 {[%emt 0:00:00]} 21. Qe1 {[%emt 0:02:31]} Rd5 {[%emt 0:00:00]} 22. Qe4 {[%emt 0:02:46]} Kf8 {[%emt 0:00:00]} 23. Bc4 {[%emt 0:01:21]} Rd6 {[%emt 0:03:17]} 24. Qh7 {[%emt 0:01:42]} Qg6 {[%emt 0:03:29]} 25. Qxg6 {[%emt 0:00:22]} fxg6 {[%emt 0:00:02]} 26. Rfe1 {[%emt 0:01:52]} Kf7 {[%emt 0:01:08]} 27. a4 {[%emt 0:00:26]} Rf8 {[%emt 0:00:47]} 28. Kf2 {[%emt 0:01:09]} Ke7 {[%emt 0:00:37]} 29. Kf3 {[%emt 0:02:08]} b6 {[%emt 0:00:33]} 30. b4 {[%emt 0:00:35]} Kf6 {[%emt 0:00:35]} 31. g4 {[%emt 0:00:57]} Rc8 {[%emt 0:00:36]} 32. R1e3 {[%emt 0:02:15]} Rf8 {[%emt 0:00:15]} 33. Kg3 {[%emt 0:00:39]} Rh8 {[%emt 0:01:23]} 34. Bb3 {[%emt 0:01:44]} Ra8 {[%emt 0:00:21]} 35. b5 {[%emt 0:02:10]} cxb5 {[%emt 0:00:36]} 36. axb5 {[%emt 0:00:10]} a6 {[%emt 0:00:04]} 37. d5 {[%emt 0:00:29]} Ke7 {[%emt 0:02:07]} 38. bxa6 {[%emt 0:00:06]} Rxa6 {[%emt 0:00:05]} 39. f5 {[%emt 0:00:34]} gxf5 {[%emt 0:00:47]} 40. gxf5 {[%emt 0:00:17]} b5 {[%emt 0:00:09]} 41. fxe6 {[%emt 0:00:45]} Be8 {[%emt 0:00:08]} 42. R5e4 {[%emt 0:00:31]} Ra1 {[%emt 0:01:12]} 43. Rg4 {[%emt 0:01:36]} g6 {[%emt 0:00:20]} 44. Rb4 {[%emt 0:01:33]} Rb1 {[%emt 0:01:19]} 45. Kf4 {[%emt 0:00:56]} Rf1+ {[%emt 0:00:21]} 46. Ke5 {[%emt 0:00:11]} Ra6 {[%emt 0:01:05]} 47. c4 {[%emt 0:00:39]} Rf5+ {[%emt 0:00:21]} 48. Kd4 {[%emt 0:00:05]} Ra1 {[%emt 0:00:53]} 49. c5 {[%emt 0:00:27]} 1-0

[Event "14th Chennai GM Open 2023"]
[Site "Chennai"]
[Date "2024.01.02"]
[Round "4.3"]
[White "Rohit S"]
[Black "Glek, Igor"]
[Result "0-1"]
[ECO "B28"]
[WhiteElo "2174"]
[BlackElo "2429"]
[Annotator "RC"]
[PlyCount "120"]
[EventDate "2023.12.31"]
[EventType "swiss"]
[EventCountry "IND"]
[SourceTitle "playchess.com"]
[Source "ChessBase"]
[SourceQuality "1"]
[TimeControl "5400+30"]

1. e4 {[%emt 0:00:02]} c5 {[%emt 0:00:08]} 2. Nf3 {[%emt 0:00:05]} a6 {[%emt 0:00:14]} 3. c4 {[%emt 0:00:04]} Nc6 {[%emt 0:00:05]} 4. d4 {[%emt 0:00:07]} cxd4 {[%emt 0:00:05]} 5. Nxd4 {[%emt 0:00:04]} e5 {[%emt 0:00:05]} 6. Nf5 {[%emt 0:01:54]} d6 {[%emt 0:00:05]} 7. Ne3 {[%emt 0:01:49]} Nf6 {[%emt 0:02:49]} 8. Nc3 {[%emt 0:00:01]} g6 {[%emt 0:00:18]} 9. Be2 {[%emt 0:04:19]} Bg7 {[%emt 0:00:05]} 10. O-O {[%emt 0:01:19]} O-O {[%emt 0:00:05]} 11. Qd3 {[%emt 0:03:17]} Nd4 {[%emt 0:00:56]} 12. Nc2 {[%emt 0:05:00]} Nd7 {[%emt 0:09:43]} 13. Be3 {[%emt 0:18:36]} Nc5 {[%emt 0:01:27]} 14. Qd2 {[%emt 0:00:16]} Nxc2 {[%emt 0:08:14]} 15. Qxc2 {[%emt 0:00:24]} Ne6 {[%emt 0:00:03]} 16. Bf3 {[%emt 0:10:01]} Nd4 {[%emt 0:01:25]} 17. Bxd4 {[%emt 0:03:26]} exd4 {[%emt 0:00:11]} 18. Ne2 {[%emt 0:00:02]} d3 {[%emt 0:02:34]} 19. Qxd3 {[%emt 0:00:05]} Bxb2 {[%emt 0:00:04]} 20. Rad1 {[%emt 0:00:29]} Be5 {[%emt 0:02:40]} 21. c5 {[%emt 0:01:41]} Qf6 {[%emt 0:03:56]} 22. cxd6 {[%emt 0:02:16]} Rd8 {[%emt 0:01:41]} 23. Qb3 {[%emt 0:01:33]} Rxd6 {[%emt 0:04:00]} 24. Rxd6 {[%emt 0:03:06]} Qxd6 {[%emt 0:00:59]} 25. Rd1 {[%emt 0:06:52]} Be6 {[%emt 0:03:48]} 26. Rxd6 {[%emt 0:01:40]} Bxb3 {[%emt 0:01:25]} 27. Rd2 {[%emt 0:00:01]} Bc4 {[%emt 0:07:56]} 28. Nc1 {[%emt 0:01:17]} b5 {[%emt 0:01:22]} 29. Be2 {[%emt 0:00:51]} Be6 {[%emt 0:07:25]} 30. Nd3 {[%emt 0:00:55]} Rd8 {[%emt 0:02:36]} 31. Rc2 {[%emt 0:01:09]} Bd6 {[%emt 0:00:39]} 32. Kf1 {[%emt 0:05:14]} a5 {[%emt 0:04:03]} 33. e5 {[%emt 0:01:02]} Bf8 {[%emt 0:07:44]} 34. Nf4 {[%emt 0:01:47]} Bf5 {[%emt 0:03:30]} 35. Rc7 {[%emt 0:04:26]} Bh6 {[%emt 0:03:02]} 36. g3 {[%emt 0:00:46]} Bxf4 {[%emt 0:00:20]} 37. gxf4 {[%emt 0:00:01]} Rb8 {[%emt 0:00:59]} 38. Ke1 {[%emt 0:04:05]} Be6 {[%emt 0:00:25]} 39. Rc5 {[%emt 0:00:08]} Bxa2 {[%emt 0:00:35]} 40. Bxb5 {[%emt 0:00:07]} Be6 {[%emt 0:13:57]} 41. Bc6 {[%emt 0:05:13]} Rc8 {[%emt 0:09:22]} 42. Rc2 {[%emt 0:00:56]} Bb3 {[%emt 0:00:00]} 43. Rb2 {[%emt 0:00:05]} a4 {[%emt 0:00:00]} 44. Bb5 {[%emt 0:00:48]} Rc3 {[%emt 0:00:00]} 45. Kd2 {[%emt 0:01:16]} Rf3 {[%emt 0:00:00]} 46. Ke2 {[%emt 0:00:45]} a3 {[%emt 0:00:00]} 47. Rb1 {[%emt 0:02:16]} a2 {[%emt 0:00:00]} 48. Ra1 {[%emt 0:00:17]} Rxf4 {[%emt 0:00:00]} 49. Bd3 {[%emt 0:00:14]} g5 {[%emt 0:00:00]} 50. f3 {[%emt 0:00:33]} h6 {[%emt 0:00:00]} 51. h3 {[%emt 0:00:28]} Bd5 {[%emt 0:00:04]} 52. Be4 {[%emt 0:01:01]} Bxe4 {[%emt 0:00:19]} 53. fxe4 {[%emt 0:00:05]} Rxe4+ {[%emt 0:00:04]} 54. Kf3 {[%emt 0:00:03]} Ra4 {[%emt 0:00:05]} 55. h4 {[%emt 0:00:07]} g4+ {[%emt 0:00:26]} 56. Kg3 {[%emt 0:00:03]} h5 {[%emt 0:00:02]} 57. Kg2 {[%emt 0:00:05]} Ra3 {[%emt 0:00:06]} 58. Kf2 {[%emt 0:00:03]} Kf8 {[%emt 0:00:06]} 59. Kg2 {[%emt 0:00:05]} Ke7 {[%emt 0:00:05]} 60. Kf2 {[%emt 0:00:04]} Ke6 {[%emt 0:00:03]} 0-1

[Event "14th Chennai GM Open 2023"]
[Site "Chennai"]
[Date "2024.01.02"]
[Round "4.4"]
[White "Matta, Vinay Kumar"]
[Black "Viani Antonio Dcunha"]
[Result "1/2-1/2"]
[ECO "C78"]
[WhiteElo "2132"]
[BlackElo "2407"]
[Annotator "RC"]
[PlyCount "137"]
[EventDate "2023.12.31"]
[EventType "swiss"]
[EventCountry "IND"]
[SourceTitle "playchess.com"]
[Source "ChessBase"]
[SourceQuality "1"]
[TimeControl "5400+30"]

1. e4 {[%emt 0:03:52]} e5 {[%emt 0:00:15]} 2. Nf3 {[%emt 0:00:16]} Nc6 {[%emt 0:00:10]} 3. Bb5 {[%emt 0:00:25]} a6 {[%emt 0:00:14]} 4. Ba4 {[%emt 0:00:06]} Nf6 {[%emt 0:00:14]} 5. O-O {[%emt 0:00:08]} Bc5 {[%emt 0:00:19]} 6. c3 {[%emt 0:01:07]} b5 {[%emt 0:00:16]} 7. Bc2 {[%emt 0:00:20]} d6 {[%emt 0:00:19]} 8. d4 {[%emt 0:00:52]} Bb6 {[%emt 0:00:12]} 9. dxe5 {[%emt 0:02:00]} Nxe5 {[%emt 0:01:16]} 10. Nxe5 {[%emt 0:00:20]} dxe5 {[%emt 0:00:06]} 11. Qxd8+ {[%emt 0:00:13]} Kxd8 {[%emt 0:00:07]} 12. Bg5 {[%emt 0:02:10]} Ke7 {[%emt 0:03:22]} 13. Nd2 {[%emt 0:02:55]} h6 {[%emt 0:05:09]} 14. Bh4 {[%emt 0:05:24]} g5 {[%emt 0:01:52]} 15. Bg3 {[%emt 0:00:07]} Nd7 {[%emt 0:00:16]} 16. Rfe1 {[%emt 0:08:35]} f6 {[%emt 0:07:27]} 17. Nf1 {[%emt 0:01:29]} Rd8 {[%emt 0:03:00]} 18. Ne3 {[%emt 0:02:41]} Bxe3 {[%emt 0:00:18]} 19. Rxe3 {[%emt 0:00:15]} Nc5 {[%emt 0:01:44]} 20. f3 {[%emt 0:11:14]} Be6 {[%emt 0:11:35]} 21. b3 {[%emt 0:09:19]} a5 {[%emt 0:18:58]} 22. Re2 {[%emt 0:12:16]} a4 {[%emt 0:04:17]} 23. Bf2 {[%emt 0:01:17]} Nd3 {[%emt 0:01:04]} 24. Rd1 {[%emt 0:21:49]} axb3 {[%emt 0:05:01]} 25. axb3 {[%emt 0:06:38]} Nxf2 {[%emt 0:17:37]} 26. Kxf2 {[%emt 0:01:14]} Rxd1 {[%emt 0:00:12]} 27. Bxd1 {[%emt 0:00:05]} Ra1 {[%emt 0:02:00]} 28. Rd2 {[%emt 0:01:34]} c5 {[%emt 0:01:12]} 29. Be2 {[%emt 0:01:00]} Rb1 {[%emt 0:04:43]} 30. Bxb5 {[%emt 0:01:32]} Rxb3 {[%emt 0:00:05]} 31. c4 {[%emt 0:00:51]} Rc3 {[%emt 0:00:10]} 32. Ra2 {[%emt 0:00:53]} Bxc4 {[%emt 0:13:00]} 33. Ra7+ {[%emt 0:00:14]} Kd8 {[%emt 0:00:00]} 34. Bxc4 {[%emt 0:00:58]} Rxc4 {[%emt 0:00:00]} 35. Rf7 {[%emt 0:00:04]} Rc2+ {[%emt 0:00:00]} 36. Kg3 {[%emt 0:00:17]} c4 {[%emt 0:00:00]} 37. Rxf6 {[%emt 0:00:08]} Kd7 {[%emt 0:00:00]} 38. Rxh6 {[%emt 0:00:47]} Rd2 {[%emt 0:00:00]} 39. Ra6 {[%emt 0:00:40]} c3 {[%emt 0:00:00]} 40. Ra3 {[%emt 0:00:15]} Rd3 {[%emt 0:00:00]} 41. Kf2 {[%emt 0:00:37]} Kc6 {[%emt 0:00:08]} 42. Ke2 {[%emt 0:00:17]} Rd2+ {[%emt 0:00:21]} 43. Ke3 {[%emt 0:00:10]} Rxg2 {[%emt 0:01:07]} 44. Rxc3+ {[%emt 0:00:05]} Kd6 {[%emt 0:00:05]} 45. Rd3+ {[%emt 0:00:23]} Ke6 {[%emt 0:00:04]} 46. Rd2 {[%emt 0:00:25]} Rg1 {[%emt 0:00:06]} 47. Kf2 {[%emt 0:00:24]} Rh1 {[%emt 0:02:04]} 48. Kg2 {[%emt 0:00:22]} Re1 {[%emt 0:00:25]} 49. Kg3 {[%emt 0:00:24]} Rg1+ {[%emt 0:00:44]} 50. Rg2 {[%emt 0:00:27]} Rf1 {[%emt 0:00:44]} 51. Kg4 {[%emt 0:00:32]} Kf6 {[%emt 0:00:13]} 52. Rb2 {[%emt 0:01:21]} Rg1+ {[%emt 0:00:13]} 53. Kh5 {[%emt 0:00:34]} Rf1 {[%emt 0:00:30]} 54. Rb6+ {[%emt 0:00:43]} Kf7 {[%emt 0:00:23]} 55. Kg4 {[%emt 0:00:48]} Rf2 {[%emt 0:00:19]} 56. Ra6 {[%emt 0:01:21]} Rxh2 {[%emt 0:01:40]} 57. Kf5 {[%emt 0:01:41]} Rf2 {[%emt 0:02:25]} 58. Rf6+ {[%emt 0:00:33]} Ke7 {[%emt 0:00:23]} 59. Kxe5 {[%emt 0:00:33]} Rf1 {[%emt 0:00:40]} 60. Rf5 {[%emt 0:00:33]} Rf2 {[%emt 0:00:33]} 61. Rxg5 {[%emt 0:00:55]} Rxf3 {[%emt 0:00:05]} 62. Rg7+ {[%emt 0:00:05]} Kf8 {[%emt 0:00:14]} 63. Ra7 {[%emt 0:00:17]} Rb3 {[%emt 0:00:20]} 64. Kd5 {[%emt 0:00:21]} Rb6 {[%emt 0:00:15]} 65. e5 {[%emt 0:00:14]} Ke8 {[%emt 0:00:09]} 66. Kc5 {[%emt 0:00:43]} Re6 {[%emt 0:00:17]} 67. Ra8+ {[%emt 0:00:18]} Kd7 {[%emt 0:00:08]} 68. Kd5 {[%emt 0:00:17]} Rd6+ {[%emt 0:00:09]} 69. exd6 {[%emt 0:02:23]} 1/2-1/2

[Event "14th Chennai GM Open 2023"]
[Site "Chennai"]
[Date "2024.01.02"]
[Round "4.5"]
[White "Jaiswal, Rupesh"]
[Black "Tologon tegin, Semetei"]
[Result "1/2-1/2"]
[ECO "B15"]
[WhiteElo "2009"]
[BlackElo "2384"]
[Annotator "RC"]
[PlyCount "168"]
[EventDate "2023.12.31"]
[EventType "swiss"]
[EventCountry "IND"]
[SourceTitle "playchess.com"]
[Source "ChessBase"]
[SourceQuality "1"]
[TimeControl "5400+30"]

1. e4 {[%emt 0:00:20]} g6 {[%emt 0:09:13]} 2. d4 {[%emt 0:02:52]} Bg7 {[%emt 0:00:26]} 3. Nc3 {[%emt 0:01:21]} c6 {[%emt 0:00:09]} 4. Be3 {[%emt 0:01:26]} d5 {[%emt 0:00:14]} 5. e5 {[%emt 0:01:39]} Nh6 {[%emt 0:00:11]} 6. f4 {[%emt 0:01:36]} Qb6 {[%emt 0:16:23]} 7. Na4 {[%emt 0:03:40]} Qa5+ {[%emt 0:00:16]} 8. c3 {[%emt 0:00:12]} Bf5 {[%emt 0:14:58]} 9. Be2 {[%emt 0:09:47]} Be4 {[%emt 0:01:56]} 10. Nf3 {[%emt 0:00:10]} Nf5 {[%emt 0:01:56]} 11. Bf2 {[%emt 0:01:06]} Bxf3 {[%emt 0:02:32]} 12. Bxf3 {[%emt 0:00:42]} h5 {[%emt 0:00:08]} 13. O-O {[%emt 0:06:04]} e6 {[%emt 0:00:25]} 14. b4 {[%emt 0:04:38]} Qc7 {[%emt 0:01:10]} 15. Nc5 {[%emt 0:01:16]} Nd7 {[%emt 0:00:19]} 16. Nxd7 {[%emt 0:01:58]} Qxd7 {[%emt 0:00:10]} 17. Be2 {[%emt 0:01:48]} Bf8 {[%emt 0:02:20]} 18. Bd3 {[%emt 0:03:38]} Be7 {[%emt 0:00:36]} 19. Qb3 {[%emt 0:02:12]} O-O {[%emt 0:04:00]} 20. Bxf5 {[%emt 0:01:00]} exf5 {[%emt 0:00:09]} 21. Rab1 {[%emt 0:01:24]} b5 {[%emt 0:25:12]} 22. a4 {[%emt 0:07:22]} a5 {[%emt 0:00:27]} 23. axb5 {[%emt 0:03:08]} cxb5 {[%emt 0:00:24]} 24. bxa5 {[%emt 0:00:12]} Rxa5 {[%emt 0:00:04]} 25. Ra1 {[%emt 0:00:19]} Ra4 {[%emt 0:05:48]} 26. Rab1 {[%emt 0:07:08]} Rb8 {[%emt 0:00:09]} 27. Rfc1 {[%emt 0:01:38]} Rb7 {[%emt 0:00:57]} 28. Qd1 {[%emt 0:04:46]} Qc6 {[%emt 0:00:17]} 29. Rb3 {[%emt 0:00:44]} Rc4 {[%emt 0:02:22]} 30. Qd3 {[%emt 0:07:45]} b4 {[%emt 0:03:54]} 31. Rcb1 {[%emt 0:00:44]} Kh7 {[%emt 0:04:11]} 32. Be1 {[%emt 0:05:56]} Qb6 {[%emt 0:00:21]} 33. Bf2 {[%emt 0:01:25]} Qa7 {[%emt 0:01:50]} 34. g3 {[%emt 0:02:47]} Rb5 {[%emt 0:01:05]} 35. Kg2 {[%emt 0:01:18]} Qa2 {[%emt 0:00:59]} 36. R1b2 {[%emt 0:00:50]} Qa4 {[%emt 0:00:07]} 37. cxb4 {[%emt 0:01:46]} Rbxb4 {[%emt 0:00:16]} 38. Rxb4 {[%emt 0:00:12]} Bxb4 {[%emt 0:00:08]} 39. Qf3 {[%emt 0:03:34]} Qc6 {[%emt 0:00:21]} 40. Rb1 {[%emt 0:01:11]} Rc3 {[%emt 0:00:41]} 41. Qe2 {[%emt 0:00:08]} Rc2 {[%emt 0:00:10]} 42. Qd3 {[%emt 0:01:37]} Rd2 {[%emt 0:01:47]} 43. Qb3 {[%emt 0:01:36]} Bc3 {[%emt 0:00:43]} 44. Rd1 {[%emt 0:01:07]} Rb2 {[%emt 0:00:32]} 45. Qa3 {[%emt 0:00:19]} Qc7 {[%emt 0:02:04]} 46. Rc1 {[%emt 0:00:34]} Rxf2+ {[%emt 0:00:30]} 47. Kxf2 {[%emt 0:00:07]} Bxd4+ {[%emt 0:00:02]} 48. Kg2 {[%emt 0:00:32]} Qb7 {[%emt 0:00:02]} 49. Rd1 {[%emt 0:00:32]} Ba7 {[%emt 0:01:15]} 50. Qf3 {[%emt 0:02:22]} Qb2+ {[%emt 0:00:08]} 51. Kh3 {[%emt 0:00:07]} d4 {[%emt 0:00:07]} 52. Qg2 {[%emt 0:01:18]} Qb3 {[%emt 0:00:34]} 53. Ra1 {[%emt 0:00:19]} Bc5 {[%emt 0:01:04]} 54. Qa2 {[%emt 0:00:56]} Qxa2 {[%emt 0:00:50]} 55. Rxa2 {[%emt 0:00:13]} Bb4 {[%emt 0:00:09]} 56. Ra7 {[%emt 0:00:54]} Kg8 {[%emt 0:00:01]} 57. Ra8+ {[%emt 0:00:29]} Kg7 {[%emt 0:00:06]} 58. Rd8 {[%emt 0:00:07]} Bc3 {[%emt 0:01:02]} 59. Kg2 {[%emt 0:00:07]} Bb2 {[%emt 0:01:10]} 60. Kf3 {[%emt 0:00:18]} Bc3 {[%emt 0:00:06]} 61. Ke2 {[%emt 0:00:54]} Ba1 {[%emt 0:00:19]} 62. Kd3 {[%emt 0:00:18]} Bc3 {[%emt 0:00:18]} 63. Kc4 {[%emt 0:00:28]} Bb2 {[%emt 0:00:38]} 64. Kd5 {[%emt 0:00:51]} h4 {[%emt 0:00:33]} 65. e6 {[%emt 0:00:54]} fxe6+ {[%emt 0:00:53]} 66. Kxe6 {[%emt 0:00:06]} hxg3 {[%emt 0:00:02]} 67. hxg3 {[%emt 0:01:07]} Bc3 {[%emt 0:00:01]} 68. Rd7+ {[%emt 0:01:46]} Kh6 {[%emt 0:00:05]} 69. Kf7 {[%emt 0:01:15]} Kh5 {[%emt 0:00:07]} 70. Rd6 {[%emt 0:00:39]} Kg4 {[%emt 0:02:00]} 71. Kxg6 {[%emt 0:01:17]} Be1 {[%emt 0:00:35]} 72. Rxd4 {[%emt 0:00:28]} Bxg3 {[%emt 0:00:02]} 73. Rd5 {[%emt 0:00:06]} Bxf4 {[%emt 0:00:06]} 74. Rxf5 {[%emt 0:00:06]} Be3 {[%emt 0:00:10]} 75. Ra5 {[%emt 0:00:08]} Bf2 {[%emt 0:00:13]} 76. Ra4+ {[%emt 0:00:09]} Kg3 {[%emt 0:00:02]} 77. Kf5 {[%emt 0:00:11]} Bc5 {[%emt 0:00:14]} 78. Rc4 {[%emt 0:00:19]} Bb6 {[%emt 0:00:01]} 79. Rc3+ {[%emt 0:00:14]} Kg2 {[%emt 0:00:06]} 80. Kf4 {[%emt 0:00:14]} Ba7 {[%emt 0:00:26]} 81. Rc2+ {[%emt 0:00:17]} Kh1 {[%emt 0:00:07]} 82. Kf3 {[%emt 0:00:27]} Bb6 {[%emt 0:01:55]} 83. Kg3 {[%emt 0:00:15]} Ba7 {[%emt 0:00:25]} 84. Rb2 {[%emt 0:00:44]} Bc5 {[%emt 0:00:25]} 1/2-1/2

[Event "14th Chennai GM Open 2023"]
[Site "Chennai"]
[Date "2024.01.02"]
[Round "4.6"]
[White "Aakash G"]
[Black "Shahil Dey"]
[Result "1/2-1/2"]
[ECO "E32"]
[WhiteElo "1823"]
[BlackElo "2368"]
[Annotator "RC"]
[PlyCount "63"]
[EventDate "2023.12.31"]
[EventType "swiss"]
[EventCountry "IND"]
[SourceTitle "playchess.com"]
[Source "ChessBase"]
[SourceQuality "1"]
[TimeControl "5400+30"]

1. d4 {[%emt 0:00:09]} Nf6 {[%emt 0:00:06]} 2. c4 {[%emt 0:00:09]} e6 {[%emt 0:00:04]} 3. Nc3 {[%emt 0:00:04]} Bb4 {[%emt 0:00:05]} 4. Qc2 {[%emt 0:00:05]} O-O {[%emt 0:00:11]} 5. a3 {[%emt 0:00:08]} Bxc3+ {[%emt 0:00:05]} 6. Qxc3 {[%emt 0:00:07]} b6 {[%emt 0:00:04]} 7. Bg5 {[%emt 0:00:22]} Bb7 {[%emt 0:00:10]} 8. e3 {[%emt 0:00:34]} d6 {[%emt 0:00:07]} 9. f3 {[%emt 0:00:44]} Nbd7 {[%emt 0:02:31]} 10. Bd3 {[%emt 0:00:26]} c5 {[%emt 0:02:11]} 11. Ne2 {[%emt 0:01:13]} h6 {[%emt 0:02:52]} 12. Bh4 {[%emt 0:01:56]} Rc8 {[%emt 0:05:13]} 13. O-O {[%emt 0:15:21]} d5 {[%emt 0:10:06]} 14. cxd5 {[%emt 0:01:45]} cxd4 {[%emt 0:01:22]} 15. Qxd4 {[%emt 0:00:54]} e5 {[%emt 0:08:14]} 16. Bxf6 {[%emt 0:04:53]} Qxf6 {[%emt 0:06:25]} 17. Qg4 {[%emt 0:03:47]} Nc5 {[%emt 0:01:17]} 18. Bc4 {[%emt 0:04:15]} b5 {[%emt 0:04:41]} 19. Bxb5 {[%emt 0:02:02]} Qb6 {[%emt 0:05:47]} 20. Bc4 {[%emt 0:08:35]} Na4 {[%emt 0:05:19]} 21. Ng3 {[%emt 0:08:10]} Nxb2 {[%emt 0:02:46]} 22. Nf5 {[%emt 0:02:06]} Qf6 {[%emt 0:01:58]} 23. Ba2 {[%emt 0:02:51]} Ba6 {[%emt 0:04:55]} 24. Rfc1 {[%emt 0:10:34]} Nd3 {[%emt 0:01:45]} 25. Rd1 {[%emt 0:12:43]} g6 {[%emt 0:02:22]} 26. Ng3 {[%emt 0:02:10]} Qb6 {[%emt 0:03:12]} 27. Nf1 {[%emt 0:05:28]} Rc2 {[%emt 0:06:09]} 28. Bb1 {[%emt 0:03:25]} Rc4 {[%emt 0:06:43]} 29. Qh3 {[%emt 0:00:23]} Nf4 {[%emt 0:02:35]} 30. Qxh6 {[%emt 0:02:13]} Ne2+ {[%emt 0:03:01]} 31. Kh1 {[%emt 0:02:50]} Nc3 {[%emt 0:00:07]} 32. d6 {[%emt 0:00:25]} 1/2-1/2